bitfinex/quotes_BTCUSD_20220303
["timestamp","ask_amount","ask_price","bid_price","bid_amount"]
[1646292020772,0.057562,43472.0,43466.0,0.3156615]
[1646292020971,0.057562,43472.0,43466.0,0.1156615]
[1646292021172,0.00016957,43471.0,43466.0,0.1156615]
[1646292021426,0.00016957,43471.0,43467.0,0.2]
[1646292021623,0.00016957,43471.0,43467.0,0.44594504]
[1646292021823,0.00016957,43471.0,43467.0,0.24594504]
[1646292022025,0.057562,43472.0,43466.0,0.1156615]
[1646292022227,0.025,43474.0,43466.0,0.11505673]
[1646292022428,0.00016957,43471.0,43470.0,0.41656487]
[1646292022627,0.00016957,43471.0,43466.0,0.28781954]
[1646292022826,0.00016957,43471.0,43467.0,0.20060477]
[1646292023227,0.003,43476.0,43467.0,0.20060477]
[1646292023426,0.0001697,43471.0,43467.0,0.20060477]
[1646292024226,0.0001697,43471.0,43464.0,0.11512]
[1646292024430,0.0001697,43471.0,43463.0,0.1232]
[1646292024431,0.057569,43471.0,43463.0,0.1232]
[1646292024828,0.0577387,43471.0,43463.0,0.39967219]
[1646292025060,0.0577387,43471.0,43460.0,0.41716964]
[1646292025662,0.057569,43471.0,43460.0,0.41716964]
[1646292025864,0.0001697,43468.0,43460.0,0.47473664]
[1646292026662,0.0001697,43468.0,43461.0,0.2114085]
[1646292026863,0.057568,43468.0,43461.0,0.2114085]
[1646292027064,0.00016971,43466.0,43461.0,0.2114085]
[1646292027963,0.086568,43468.0,43461.0,0.2114085]
[1646292027964,0.086568,43468.0,43462.0,0.00060477]
[1646292028367,0.00016971,43466.0,43462.0,0.00060477]
[1646292029010,0.00016971,43466.0,43465.0,0.20060477]
[1646292029207,0.003,43466.0,43465.0,0.20060477]
[1646292029407,0.003,43466.0,43464.0,0.20060477]
[1646292029607,0.00316971,43466.0,43464.0,0.20060477]
[1646292029807,0.00316971,43466.0,43462.0,0.21656487]
[1646292030409,0.025,43468.0,43461.0,0.41201327]
[1646292030608,0.00016971,43466.0,43461.0,0.41201327]
[1646292030811,0.00016971,43466.0,43464.0,0.20060477]
[1646292031211,0.00016971,43466.0,43461.0,0.2114085]
[1646292031410,0.00016971,43466.0,43464.0,0.2]
[1646292031611,0.025,43468.0,43464.0,0.2]
[1646292031811,0.00016971,43466.0,43464.0,0.2]
[1646292032412,0.00016971,43466.0,43461.0,0.42857814]
[1646292032873,0.025,43468.0,43461.0,0.42857814]
[1646292033074,0.00016971,43466.0,43464.0,0.195]
[1646292033479,0.00016971,43466.0,43461.0,0.21716964]
[1646292033776,0.00016971,43466.0,43457.0,0.2709]
[1646292034176,0.08257,43467.0,43458.0,0.31780477]
[1646292034377,0.00016971,43464.0,43460.0,0.26725712]
[1646292034577,0.00016971,43464.0,43458.0,0.31780477]
[1646292034778,0.00016971,43464.0,43458.0,0.49175412]
[1646292035178,0.00416971,43464.0,43458.0,0.49175412]
[1646292035377,0.004,43464.0,43458.0,0.49175412]
[1646292035577,0.00416971,43464.0,43458.0,0.49175412]
[1646292035778,0.00416971,43464.0,43461.0,0.26789727]
[1646292036179,0.00416971,43464.0,43461.0,0.26850204]
[1646292036427,0.025,43467.0,43461.0,0.26789727]
[1646292036628,0.025,43467.0,43460.0,0.057568]
[1646292036827,0.00016971,43465.0,43460.0,0.057568]
[1646292037832,0.028,43467.0,43465.0,0.15764471]
[1646292038428,0.025,43467.0,43465.0,0.15764471]
[1646292038630,0.08257,43467.0,43460.0,0.27473764]
[1646292038830,0.08257,43467.0,43460.0,0.05817277]
[1646292039230,0.00016971,43466.0,43460.0,0.05817277]
[1646292039630,0.00016971,43466.0,43464.0,0.16700643]
[1646292040066,0.08257,43467.0,43464.0,0.16700643]
[1646292040467,0.0827397,43467.0,43464.0,0.16700643]
[1646292041065,0.0857397,43467.0,43464.0,0.16700643]
[1646292041262,0.08557,43467.0,43464.0,0.16700643]
[1646292041464,0.08557,43467.0,43460.0,0.05817077]
[1646292042268,0.08557,43467.0,43460.0,0.057566]
[1646292042466,0.025,43473.0,43466.0,0.00060477]
[1646292042663,0.025,43473.0,43467.0,0.057558]
[1646292043071,0.025,43473.0,43466.0,0.00060477]
[1646292043664,0.057564,43472.0,43466.0,0.00060477]
[1646292043909,0.057564,43472.0,43464.0,0.00060477]
[1646292043910,0.16998535,43470.0,43464.0,0.00060477]
[1646292044115,0.0577337,43472.0,43464.0,0.00060477]
[1646292045111,0.057564,43472.0,43464.0,0.00060477]
[1646292045311,0.0001697,43470.0,43464.0,0.00060477]
[1646292046213,0.20854112,43471.0,43464.0,0.00060477]
[1646292046413,0.0001697,43469.0,43464.0,0.00060477]
[1646292046814,0.0001697,43469.0,43465.0,0.057561]
[1646292047212,0.0001697,43469.0,43464.0,0.00060477]
[1646292047412,0.057564,43472.0,43464.0,0.00060477]
[1646292047668,0.0001697,43469.0,43464.0,0.00060477]
[1646292048471,0.0001697,43469.0,43466.0,0.21240569]
[1646292048668,0.0001697,43469.0,43464.0,0.00060477]
[1646292048669,0.057569,43470.0,43464.0,0.00060477]
[1646292048868,0.0001697,43469.0,43464.0,0.00060477]
[1646292049470,0.0031697,43469.0,43464.0,0.00060477]
[1646292049672,0.0031697,43469.0,43466.0,0.2041615]
[1646292049871,0.003,43469.0,43466.0,0.2041615]
[1646292050070,0.0031697,43469.0,43466.0,0.2041615]
[1646292050473,0.0031697,43469.0,43468.0,0.00060477]
[1646292050673,0.0031697,43469.0,43468.0,0.23352708]
[1646292050976,0.003,43469.0,43468.0,0.00060477]
[1646292051435,0.00010164,43471.0,43468.0,0.00060477]
[1646292051834,0.00010164,43471.0,43470.0,0.16676191]
[1646292052132,0.025,43473.0,43470.0,0.57832678]
[1646292052334,0.00010164,43473.0,43470.0,0.57832678]
[1646292052735,0.00010164,43473.0,43471.0,0.00060477]
[1646292053334,0.025,43479.0,43471.0,0.00060477]
[1646292053734,0.00010164,43474.0,43471.0,0.00060477]
[1646292054535,0.025,43479.0,43471.0,0.00060477]
[1646292054738,0.025,43479.0,43470.0,0.16676191]
[1646292054936,0.00018328,43475.0,43470.0,0.16676191]
[1646292055180,0.00018328,43475.0,43471.0,0.00060477]
[1646292055781,0.025,43479.0,43471.0,0.00054351]
[1646292056185,0.00016782,43475.0,43471.0,0.00054351]
[1646292056783,0.004,43473.0,43471.0,0.00054351]
[1646292057583,0.00389238,43473.0,43471.0,0.00054351]
[1646292057984,0.00016782,43475.0,43471.0,0.00054351]
[1646292058184,0.057557,43477.0,43471.0,0.00054351]
[1646292058384,0.00016783,43474.0,43471.0,0.00054351]
[1646292059327,0.028,43479.0,43471.0,0.00054351]
[1646292059729,0.00016015,43475.0,43471.0,0.00054351]
[1646292060529,0.057558,43477.0,43471.0,0.00054351]
[1646292061030,0.00316118,43475.0,43471.0,0.00054351]
[1646292061229,0.00316118,43475.0,43471.0,0.24722553]
[1646292061730,0.003,43475.0,43471.0,0.24722553]
[1646292061928,0.003,43475.0,43471.0,0.00054351]
[1646292062129,0.00316118,43475.0,43471.0,0.00054351]
[1646292062329,0.00016118,43475.0,43471.0,0.00054351]
[1646292063065,0.003,43475.0,43471.0,0.00054351]
[1646292063266,0.0031552,43475.0,43471.0,0.00054351]
[1646292063668,0.057564,43472.0,43464.0,0.21710838]
[1646292063868,0.057568,43471.0,43464.0,0.00054351]
[1646292064467,0.057568,43471.0,43462.0,0.1171]
[1646292064468,0.38923942,43471.0,43462.0,0.1171]
[1646292064668,0.26203576,43470.0,43461.0,0.1995]
[1646292064870,0.42308576,43470.0,43461.0,0.1995]
[1646292065068,0.19598931,43464.0,43461.0,0.1995]
[1646292065271,0.05758,43462.0,43455.0,0.11774351]
[1646292065567,0.0459,43461.0,43455.0,0.11774351]
[1646292065768,0.0459,43461.0,43457.0,0.23998186]
[1646292065968,0.0709,43461.0,43455.0,0.26713633]
[1646292066814,0.0709,43461.0,43455.0,0.20956233]
[1646292067818,0.0729,43461.0,43455.0,0.20956233]
[1646292068617,0.0709,43461.0,43455.0,0.20956233]
[1646292069221,0.27801663,43461.0,43455.0,0.20956233]
[1646292069418,0.28001663,43461.0,43455.0,0.20956233]
[1646292069618,0.0729,43461.0,43455.0,0.20956233]
[1646292069919,0.027,43461.0,43455.0,0.20956233]
[1646292070783,0.025,43461.0,43455.0,0.20956233]
[1646292071382,0.025,43461.0,43455.0,0.20901882]
[1646292071584,0.025,43461.0,43455.0,0.26659182]
[1646292071789,0.025,43461.0,43455.0,0.20901882]
[1646292073386,0.029,43461.0,43455.0,0.20901882]
[1646292074818,0.025,43461.0,43455.0,0.20901882]
[1646292075419,0.028,43461.0,43455.0,0.20901882]
[1646292075622,0.003,43461.0,43455.0,0.20901882]
[1646292076023,0.003,43461.0,43455.0,0.26659282]
[1646292076722,0.025,43462.0,43455.0,0.46159282]
[1646292077122,0.025,43462.0,43455.0,0.40401882]
[1646292077323,0.057578,43461.0,43455.0,0.20901882]
[1646292077769,0.025,43462.0,43456.0,0.057571]
[1646292077971,0.00015621,43464.0,43456.0,0.057571]
[1646292078170,0.057574,43466.0,43456.0,0.057571]
[1646292078171,0.02363021,43466.0,43456.0,1.107571]
[1646292078368,0.004,43467.0,43458.0,0.00054351]
[1646292078569,0.057572,43466.0,43458.0,0.00054351]
[1646292079473,0.060572,43466.0,43462.0,0.1652508]
[1646292079670,0.10135096,43463.0,43462.0,0.1652508]
[1646292080773,0.10135096,43463.0,43462.0,0.16579431]
[1646292080972,0.025,43468.0,43462.0,0.16579431]
[1646292081173,0.025,43473.0,43462.0,0.16579431]
[1646292081619,0.003,43463.0,43462.0,0.16579431]
[1646292082417,0.025,43473.0,43462.0,0.46123058]
[1646292082618,0.00018329,43466.0,43462.0,0.46123058]
[1646292083420,0.005,43471.0,43462.0,0.46123058]
[1646292083621,0.005,43471.0,43470.0,0.16777491]
[1646292084822,0.05756,43475.0,43470.0,0.16777491]
[1646292085068,0.00018328,43473.0,43470.0,0.16777491]
[1646292085876,0.06056,43475.0,43470.0,0.16777491]
[1646292086072,0.003,43475.0,43474.0,0.195]
[1646292086275,0.003,43475.0,43474.0,0.74192067]
[1646292086669,0.003,43475.0,43474.0,0.97204447]
[1646292087470,0.00010143,43477.0,43475.0,0.057546]
[1646292087670,0.00010143,43477.0,43476.0,0.3303558]
[1646292088272,0.004,43480.0,43479.0,0.17946171]
[1646292088472,0.004,43480.0,43479.0,0.435735]
[1646292088917,0.057549,43483.0,43479.0,0.435735]
[1646292089317,0.1151,43483.0,43479.0,0.435735]
[1646292089520,0.1181,43483.0,43476.0,0.3303558]
[1646292089718,0.11797906,43483.0,43476.0,0.3303558]
[1646292090722,0.1177957,43483.0,43473.0,0.3303558]
[1646292090920,0.1177957,43483.0,43477.0,0.41210838]
[1646292090921,0.00018336,43482.0,43477.0,0.41210838]
[1646292091323,0.11529536,43482.0,43473.0,0.3303558]
[1646292091524,0.23041236,43482.0,43475.0,0.28518972]
[1646292091720,0.25541236,43482.0,43475.0,0.28518972]
[1646292091922,0.255229,43482.0,43475.0,0.28518972]
[1646292092121,0.00018336,43481.0,43475.0,0.28518972]
[1646292092320,0.00018336,43481.0,43473.0,0.3303558]
[1646292092594,0.057558,43478.0,43473.0,0.3303558]
[1646292093393,0.05774137,43478.0,43473.0,0.3303558]
[1646292093592,0.06174137,43478.0,43473.0,0.3303558]
[1646292094295,0.061558,43478.0,43473.0,0.3303558]
[1646292094494,0.06173418,43478.0,43473.0,0.3303558]
[1646292094695,0.06173418,43478.0,43474.0,0.21951776]
[1646292094894,0.05773418,43478.0,43474.0,0.21951776]
[1646292095495,0.1,43481.0,43474.0,0.21951776]
[1646292095696,0.00017618,43478.0,43474.0,0.21951776]
[1646292095897,0.00017618,43478.0,43473.0,0.3303558]
[1646292096833,0.00017618,43478.0,43473.0,0.58265927]
[1646292097035,0.00017618,43478.0,43473.0,0.3303558]
[1646292097639,0.00317618,43478.0,43473.0,0.3303558]
[1646292097833,0.003,43478.0,43473.0,0.3303558]
[1646292098034,0.00316971,43478.0,43473.0,0.3303558]
[1646292099035,0.003,43478.0,43476.0,0.15846695]
[1646292099235,0.00316971,43478.0,43477.0,0.3303558]
[1646292099434,0.00016971,43478.0,43477.0,0.3303558]
[1646292100281,0.003,43483.0,43477.0,0.3303558]
[1646292100478,0.0001697,43480.0,43477.0,0.3303558]
[1646292100677,0.0001697,43480.0,43478.0,0.2034156]
[1646292100883,0.0001697,43480.0,43479.0,0.3303558]
[1646292100884,9.7e-06,43480.0,43479.0,0.3303558]
[1646292101481,0.004,43485.0,43479.0,0.3303558]
[1646292101878,0.004,43485.0,43484.0,0.26951726]
[1646292102079,0.004,43485.0,43484.0,0.59987306]
[1646292102882,0.025,43488.0,43484.0,0.59987306]
[1646292103379,0.01,43489.0,43484.0,0.59987306]
[1646292103579,0.003,43488.0,43484.0,0.3303558]
[1646292103829,0.003,43488.0,43481.0,0.3303558]
[1646292104029,0.003,43488.0,43478.0,0.3303558]
[1646292104630,0.003,43488.0,43480.0,0.23395328]
[1646292104831,0.14,43484.0,43480.0,0.23395328]
[1646292105033,0.14,43481.0,43478.0,0.3303558]
[1646292105233,0.057548,43485.0,43478.0,0.3303558]
[1646292105630,0.004,43484.0,43478.0,0.3303558]
[1646292106030,0.004,43484.0,43481.0,0.20839359]
[1646292106232,0.14,43482.0,43481.0,0.20839359]
[1646292106431,0.004,43484.0,43481.0,0.20839359]
[1646292106630,0.00018348,43483.0,43478.0,0.3303558]
[1646292107330,0.00018348,43483.0,43478.0,0.5828958]
[1646292107567,0.004,43483.0,43478.0,0.5828958]
[1646292107764,0.03258197,43489.0,43485.0,0.24456482]
[1646292107968,0.14,43486.0,43485.0,0.24456482]
[1646292108267,0.14,43486.0,43479.0,1.24554351]
[1646292108464,0.057546,43487.0,43479.0,1.05054351]
[1646292108964,0.057546,43487.0,43479.0,1.24554351]
[1646292109165,0.057546,43487.0,43484.0,0.23027745]
[1646292109366,0.03258197,43489.0,43484.0,0.23027745]
[1646292109966,0.03258197,43489.0,43479.0,1.05054351]
[1646292110167,0.14785398,43489.0,43479.0,1.05]
[1646292110767,0.20540098,43489.0,43479.0,1.05]
[1646292111167,0.20522597,43489.0,43479.0,1.05]
[1646292111443,0.00017501,43486.0,43481.0,0.057541]
[1646292112044,0.00017501,43486.0,43482.0,0.00054351]
[1646292112244,0.03658197,43489.0,43482.0,0.00054351]
[1646292112444,0.03658197,43489.0,43479.0,1.05]
[1646292112445,0.00017501,43486.0,43479.0,1.05]
[1646292112747,0.103449,43485.0,43474.0,0.5]
[1646292112945,0.6163663,43484.0,43474.0,0.5]
[1646292113151,0.0459,43483.0,43474.0,0.5]
[1646292113345,0.1459,43483.0,43474.0,0.5]
[1646292113546,0.20264642,43480.0,43474.0,0.5]
[1646292113846,0.103456,43479.0,43472.0,0.1983]
[1646292114044,0.103456,43479.0,43470.0,0.46512688]
[1646292114244,0.203456,43479.0,43470.0,0.58022788]
[1646292114745,0.27832748,43479.0,43470.0,0.31492788]
[1646292114945,0.27832748,43479.0,43470.0,0.11564451]
[1646292115483,0.261015,43479.0,43470.0,0.11564451]
[1646292116383,0.103456,43479.0,43470.0,0.11564451]
[1646292117083,0.103456,43479.0,43470.0,0.00054351]
[1646292117084,0.128456,43479.0,43470.0,0.00054351]
[1646292117384,0.228456,43479.0,43470.0,0.26647921]
[1646292117582,0.232456,43479.0,43470.0,0.26647921]
[1646292118082,0.232456,43479.0,43470.0,0.00054351]
[1646292118286,0.290015,43479.0,43470.0,0.00054351]
[1646292118927,0.286015,43479.0,43470.0,0.00054351]
[1646292119132,0.286015,43479.0,43474.0,0.27187399]
[1646292119330,0.10131712,43475.0,43474.0,0.27187399]
[1646292119530,0.17034888,43474.0,43470.0,0.00054351]
[1646292119729,0.14721712,43475.0,43470.0,0.00054351]
[1646292119730,0.0459,43475.0,43470.0,0.00054351]
[1646292120230,0.0459,43475.0,43467.0,0.1203]
[1646292120231,0.14,43471.0,43467.0,0.1203]
[1646292120429,0.0459,43470.0,43464.0,0.00068092]
[1646292120729,0.0459,43470.0,43460.0,0.12044351]
[1646292120932,0.0459,43470.0,43462.0,0.00017017]
[1646292121127,0.1846831,43468.0,43462.0,0.00017017]
[1646292121328,0.025,43472.0,43462.0,0.00017017]
[1646292121329,0.10134046,43464.0,43462.0,0.00017017]
[1646292121532,0.10134046,43463.0,43462.0,0.00017017]
[1646292121728,0.10134046,43463.0,43462.0,0.22471516]
[1646292121930,0.10134046,43463.0,43462.0,0.22454499]
[1646292122129,0.14724046,43463.0,43462.0,0.22454499]
[1646292125385,0.15024046,43463.0,43462.0,0.22454499]
[1646292125586,0.15024046,43463.0,43459.0,0.00054351]
[1646292125786,0.15024046,43463.0,43460.0,0.00017013]
[1646292125787,0.0489,43463.0,43460.0,0.00017013]
[1646292126087,0.10134046,43461.0,43460.0,0.00017013]
[1646292126817,0.10134046,43461.0,43460.0,0.28170218]
[1646292127019,0.10134046,43461.0,43460.0,0.49826705]
[1646292127219,0.10133929,43461.0,43460.0,0.80913725]
[1646292127619,0.10133929,43461.0,43460.0,1.00413725]
[1646292127820,0.10133929,43461.0,43460.0,0.69326705]
[1646292128020,0.10133929,43461.0,43460.0,0.41156487]
[1646292128220,0.10133929,43461.0,43459.0,0.25311051]
[1646292128520,0.003,43466.0,43459.0,0.05811051]
[1646292128722,0.0459,43470.0,43459.0,0.05811051]
[1646292129120,0.0459,43470.0,43462.0,0.23850283]
[1646292129321,0.0459,43470.0,43462.0,0.00017013]
[1646292129523,0.10134046,43466.0,43462.0,0.00017013]
[1646292129721,0.10133929,43463.0,43462.0,0.00017013]
[1646292129921,0.10133929,43463.0,43462.0,8.462e-05]
[1646292130369,0.10133929,43463.0,43459.0,0.05811051]
[1646292130570,0.0499,43470.0,43460.0,0.21327931]
[1646292130771,0.0459,43470.0,43460.0,0.21327931]
[1646292130970,0.10134046,43466.0,43462.0,0.00054351]
[1646292131170,0.10133929,43463.0,43462.0,0.00054351]
[1646292131374,0.0459,43470.0,43464.0,0.057563]
[1646292131569,0.0459,43470.0,43466.0,0.00054351]
[1646292131772,0.10134046,43467.0,43466.0,0.00054351]
[1646292132072,0.10133929,43467.0,43466.0,0.00054351]
[1646292132971,0.10133929,43467.0,43465.0,0.00054351]
[1646292133170,0.10134046,43466.0,43465.0,0.00054351]
[1646292133825,0.10134046,43466.0,43464.0,0.00054351]
[1646292134030,0.1700202,43468.0,43464.0,0.00054351]
[1646292134228,0.057567,43471.0,43464.0,0.00054351]
[1646292134526,0.057567,43471.0,43462.0,0.05772175]
[1646292134729,0.057567,43471.0,43462.0,0.00015575]
[1646292135129,0.057567,43471.0,43460.0,0.00054351]
[1646292135428,0.057567,43471.0,43462.0,0.00015568]
[1646292135429,0.34580148,43471.0,43462.0,0.00015568]
[1646292135628,0.106467,43471.0,43462.0,0.00015568]
[1646292136731,0.103467,43471.0,43462.0,0.00015568]
[1646292137431,0.115154,43470.0,43462.0,0.00015568]
[1646292137686,0.057575,43467.0,43462.0,0.00015568]
[1646292137886,0.103475,43467.0,43462.0,0.00015568]
[1646292138086,0.16190587,43465.0,43462.0,0.00015568]
[1646292138288,0.3303558,43464.0,43462.0,0.00015568]
[1646292138488,0.14,43463.0,43462.0,0.00015568]
[1646292138686,0.7314238,43463.0,43457.0,0.4092]
[1646292138887,0.6164238,43463.0,43461.0,0.00015693]
[1646292139090,0.10135563,43462.0,43461.0,0.00015693]
[1646292139288,0.14725563,43462.0,43461.0,0.00015693]
[1646292139687,0.20483763,43462.0,43461.0,0.00015693]
[1646292139887,0.20483763,43462.0,43452.0,0.181179]
[1646292140089,0.103482,43462.0,43459.0,0.00015693]
[1646292140288,0.14,43460.0,43459.0,0.00015693]
[1646292140487,0.1859,43460.0,43459.0,0.00015693]
[1646292141088,0.1859,43460.0,43453.0,0.00054351]
[1646292141360,0.10135563,43456.0,43453.0,0.00054351]
[1646292141551,0.10135563,43454.0,43453.0,0.00054351]
[1646292141756,0.10135563,43454.0,43452.0,0.28538575]
[1646292141953,0.0459,43457.0,43452.0,0.28538575]
[1646292142551,0.0459,43457.0,43453.0,0.00054351]
[1646292142751,0.025,43463.0,43453.0,0.31043448]
[1646292142951,0.025,43463.0,43457.0,0.00054351]
[1646292143152,0.1115,43465.0,43457.0,0.00054351]
[1646292143451,0.002,43463.0,43457.0,0.00054351]
[1646292143853,0.002,43463.0,43455.0,0.115135]
[1646292144652,0.115152,43465.0,43455.0,0.115135]
[1646292145070,0.115152,43465.0,43457.0,0.00016993]
[1646292145471,0.1,43466.0,43457.0,0.00071344]
[1646292145870,0.34246146,43467.0,43457.0,0.00016993]
[1646292146070,0.34246146,43467.0,43454.0,0.115143]
[1646292146270,0.34246146,43467.0,43459.0,0.00017758]
[1646292146569,0.14,43463.0,43459.0,0.00017758]
[1646292146774,0.14,43460.0,43459.0,0.00017758]
[1646292147173,0.057575,43465.0,43458.0,0.057572]
[1646292147573,0.060575,43465.0,43458.0,0.051372]
[1646292147973,0.0459,43464.0,43458.0,0.051372]
[1646292148174,0.0459,43464.0,43457.0,0.00017759]
[1646292148374,0.0459,43464.0,43457.0,0.00054351]
[1646292148577,0.0459,43464.0,43454.0,0.115143]
[1646292148833,0.0459,43464.0,43459.0,0.00017758]
[1646292149034,0.10135563,43460.0,43459.0,0.00017758]
[1646292149633,0.10135563,43460.0,43455.0,0.00054351]
[1646292149837,0.0489,43464.0,43460.0,8.991e-05]
[1646292150134,0.10135446,43461.0,43460.0,8.991e-05]
[1646292151037,0.16315751,43468.0,43462.0,0.21656487]
[1646292151234,0.20416906,43475.0,43464.0,0.115117]
[1646292151436,0.01166067,43476.0,43465.0,0.3303558]
[1646292151437,0.00016067,43476.0,43465.0,0.3303558]
[1646292151834,0.00016067,43476.0,43469.0,0.26064259]
[1646292152038,0.05,43477.0,43470.0,0.3303558]
[1646292152234,0.057554,43480.0,43471.0,0.057554]
[1646292152435,0.0115,43483.0,43471.0,0.057554]
[1646292152436,0.00016069,43476.0,43471.0,0.057554]
[1646292152883,0.00016069,43476.0,43472.0,0.00054351]
[1646292153286,0.0115,43487.0,43475.0,0.00054351]
[1646292153484,0.001,43481.0,43478.0,0.05808451]
[1646292153685,0.001,43481.0,43479.0,0.3303558]
[1646292154486,0.001,43481.0,43480.0,0.21821308]
[1646292154790,8.716e-05,43482.0,43480.0,0.53856888]
[1646292154988,8.716e-05,43482.0,43480.0,0.3303558]
[1646292155590,0.003,43487.0,43480.0,0.3303558]
[1646292155788,8.716e-05,43483.0,43480.0,0.3303558]
[1646292156188,8.716e-05,43483.0,43477.0,0.3303558]
[1646292156419,8.716e-05,43483.0,43477.0,0.33089931]
[1646292156623,8.716e-05,43483.0,43477.0,0.3303558]
[1646292156819,0.17962135,43487.0,43473.0,0.3303558]
[1646292157020,0.00017775,43482.0,43473.0,0.3303558]
[1646292157220,0.00017775,43482.0,43479.0,0.00054351]
[1646292158020,0.20222671,43489.0,43479.0,0.00054351]
[1646292158221,0.00017775,43483.0,43479.0,0.00054351]
[1646292159021,0.00017775,43483.0,43481.0,0.19935303]
[1646292159221,0.00758197,43489.0,43482.0,0.3303558]
[1646292159421,0.00017775,43483.0,43482.0,0.3303558]
[1646292160098,0.00017775,43483.0,43482.0,0.33089931]
[1646292160297,7.75e-06,43483.0,43482.0,0.33089931]
[1646292160595,0.003,43488.0,43485.0,0.195]
[1646292160794,0.00758197,43489.0,43487.0,0.00054351]
[1646292160996,0.00758197,43489.0,43487.0,0.27463838]
[1646292161196,0.00758197,43489.0,43488.0,0.55417308]
[1646292161394,0.00758197,43489.0,43488.0,0.55402042]
[1646292161695,0.01058197,43489.0,43488.0,0.55402042]
[1646292162295,0.001,43491.0,43488.0,0.93325442]
[1646292162497,0.001,43491.0,43489.0,0.379234]
[1646292162698,0.001,43491.0,43490.0,0.37679931]
[1646292163299,0.001,43491.0,43490.0,0.39981931]
[1646292163498,0.001,43491.0,43490.0,0.40181931]
[1646292163931,0.001,43491.0,43490.0,0.75803331]
[1646292164141,3.49e-06,43500.0,43492.0,0.02302]
[1646292164332,3.49e-06,43500.0,43499.0,0.41210838]
[1646292164531,3.49e-06,43500.0,43499.0,1.16759818]
[1646292165131,3.49e-06,43500.0,43499.0,1.30242881]
[1646292165929,3.49e-06,43500.0,43499.0,1.08858303]
[1646292166130,3.49e-06,43500.0,43499.0,0.78836418]
[1646292166532,3.49e-06,43500.0,43499.0,0.45800838]
[1646292167432,3.49e-06,43500.0,43499.0,0.69847154]
[1646292167682,0.00200349,43500.0,43499.0,0.69847154]
[1646292168882,3.49e-06,43500.0,43499.0,0.45800838]
[1646292169485,0.00200349,43500.0,43499.0,0.41210838]
[1646292169884,0.00200349,43500.0,43499.0,0.76832238]
[1646292170083,0.00200349,43500.0,43499.0,0.41210838]
[1646292170782,0.00200349,43500.0,43499.0,0.76832238]
[1646292170783,3.49e-06,43500.0,43499.0,0.76832238]
[1646292170982,3.49e-06,43500.0,43499.0,0.97459959]
[1646292171426,3.49e-06,43500.0,43499.0,0.61838559]
[1646292171628,3.49e-06,43500.0,43499.0,0.97559959]
[1646292171829,3.49e-06,43500.0,43499.0,0.61938559]
[1646292172827,3.49e-06,43500.0,43499.0,0.61838559]
[1646292173433,0.001,43505.0,43499.0,1.33303915]
[1646292173633,0.001,43505.0,43504.0,0.00054351]
[1646292175379,0.001,43505.0,43504.0,0.35675751]
[1646292175581,0.001,43505.0,43504.0,0.68241297]
[1646292178375,0.004,43505.0,43504.0,0.68241297]
[1646292178825,0.004,43505.0,43504.0,0.68441297]
[1646292179927,0.001,43505.0,43504.0,0.70743297]
[1646292180127,0.00018375,43507.0,43504.0,0.70743297]
[1646292180128,0.00018375,43507.0,43506.0,0.195]
[1646292180327,0.00018375,43507.0,43506.0,0.87686946]
[1646292180527,0.00018375,43507.0,43506.0,0.52065546]
[1646292180928,0.002,43508.0,43506.0,0.52065546]
[1646292181132,0.002,43508.0,43507.0,0.32565546]
[1646292181331,0.002,43508.0,43507.0,0.32619897]
[1646292181528,0.002,43508.0,43507.0,0.68241297]
[1646292181727,0.002,43508.0,43507.0,0.32619897]
[1646292182330,0.002,43508.0,43500.0,0.32565546]
[1646292182584,0.002,43508.0,43507.0,0.002]
[1646292183787,0.002,43508.0,43502.0,0.28841282]
[1646292183986,0.002,43508.0,43505.0,0.00054351]
[1646292184185,0.002,43508.0,43505.0,0.32619897]
[1646292186187,0.002,43508.0,43505.0,0.44119497]
[1646292186425,0.002,43508.0,43506.0,0.356214]
[1646292186630,0.002,43508.0,43507.0,0.32565546]
[1646292188024,0.00184,43508.0,43507.0,0.32565546]
[1646292190400,0.00184,43508.0,43507.0,0.32765546]
[1646292190594,0.00184,43508.0,43507.0,0.002]
[1646292191795,0.00184,43508.0,43505.0,0.00054351]
[1646292192396,0.00184,43508.0,43505.0,0.00254351]
[1646292192595,0.00184,43508.0,43505.0,0.002]
[1646292193830,0.00184,43508.0,43504.0,0.32565546]
[1646292194429,0.00201037,43508.0,43504.0,0.32565546]
[1646292195230,0.00184,43508.0,43505.0,0.356214]
[1646292195531,0.00201037,43508.0,43504.0,0.32565546]
[1646292195930,0.00201037,43508.0,43506.0,0.356214]
[1646292196129,0.00201037,43508.0,43505.0,0.356214]
[1646292196333,0.00201037,43508.0,43504.0,0.32565546]
[1646292196531,0.00184,43508.0,43504.0,0.32565546]
[1646292197976,0.00201036,43508.0,43504.0,0.32565546]
[1646292198377,0.00201036,43508.0,43505.0,0.356214]
[1646292198574,0.00201036,43508.0,43504.0,0.32565546]
[1646292198775,0.00201036,43508.0,43505.0,0.356214]
[1646292198978,0.00184,43508.0,43504.0,0.32565546]
[1646292199178,0.00201036,43508.0,43504.0,0.32565546]
[1646292199376,0.00201036,43508.0,43499.0,0.05805351]
[1646292199577,0.05952836,43508.0,43499.0,0.00054351]
[1646292199777,0.0459,43507.0,43499.0,0.00054351]
[1646292199977,0.0459,43507.0,43497.0,0.5]
[1646292200176,0.0459,43507.0,43496.0,0.52139371]
[1646292200376,0.0711918,43505.0,43496.0,0.52139371]
[1646292200578,0.0459,43504.0,43498.0,0.00054351]
[1646292200976,0.20736747,43503.0,43498.0,0.00054351]
[1646292201177,0.25326747,43503.0,43498.0,0.00054351]
[1646292201432,0.0459,43503.0,43498.0,0.00054351]
[1646292202233,0.0459,43503.0,43490.0,0.115032]
[1646292202234,0.38317846,43502.0,43490.0,0.115032]
[1646292202435,0.0459,43501.0,43489.0,0.5]
[1646292202632,0.16094649,43500.0,43482.0,0.1875]
[1646292202835,0.37155546,43499.0,43483.0,0.115]
[1646292203033,0.01149,43498.0,43483.0,0.115]
[1646292203238,0.01149,43498.0,43484.0,0.18443228]
[1646292203239,0.0459,43497.0,43484.0,0.18443228]
[1646292203431,0.01149,43496.0,43484.0,0.18443228]
[1646292203632,0.10344,43495.0,43484.0,0.18443228]
[1646292203832,0.20344,43495.0,43484.0,0.18443228]
[1646292204631,0.20786728,43493.0,43484.0,0.18443228]
[1646292204833,0.0459,43492.0,43484.0,0.18443228]